bitfinex-derivatives/quotes_ETHF0:USTF0_20250624
["timestamp","ask_amount","ask_price","bid_price","bid_amount"]
[1750771662699,2.4267,2418.0,2417.7,0.82677]
[1750771662700,0.8268,2417.8,2417.7,0.82677]
[1750771665502,0.82677,2417.9,2417.8,0.82675]
[1750771666397,2.24807,2417.9,2417.8,0.82675]
[1750771668196,1.88754,2418.0,2417.9,0.82675]
[1750771669306,0.82677,2417.9,2417.8,0.82675]
[1750771669603,2.26327,2417.9,2417.8,0.82675]
[1750771670207,1.4365,2417.9,2417.8,0.82675]
[1750771670408,1.0608,2418.0,2417.9,0.82675]
[1750771670708,1.88753,2418.0,2417.9,0.82675]
[1750771671606,3.31803,2418.0,2417.9,0.82675]
[1750771672604,0.82675,2417.9,2417.8,2.45445281]
[1750771672907,0.82675,2417.9,2417.8,1.69145431]
[1750771673107,2.25725,2417.9,2417.8,0.0637515]
[1750771673903,0.82678,2417.8,2417.7,2.45450281]
[1750771674208,0.82682,2417.8,2417.7,0.82679]
[1750771675506,2.25727,2417.9,2417.8,0.82678]
[1750771675808,2.25727,2417.9,2417.8,2.47021091]
[1750771676413,2.25727,2417.9,2417.8,1.64343091]
[1750771677007,0.82678,2417.8,2417.7,3.28920288]
[1750771677910,0.82678,2417.8,2417.7,3.35295438]
[1750771678413,4.03458,2417.8,2417.7,0.0637515]
[1750771678711,4.03458,2417.8,2417.7,1.71032304]
[1750771679113,0.82678,2417.9,2417.8,0.82676]
[1750771679430,1.88754,2418.0,2417.9,0.82675]
[1750771679810,3.2078,2418.1,2418.0,0.82671]
[1750771680010,0.82671,2418.1,2418.0,3.28910288]
[1750771680312,0.82671,2418.0,2417.9,1.6461036]
[1750771680512,2.06693,2417.9,2417.5,1.86270788]
[1750771680720,0.82692,2417.4,2417.3,0.82695]
[1750771681423,6.70207,2417.8,2417.2,6.49101717]
[1750771681718,0.82691,2417.5,2417.4,0.82691]
[1750771682307,3.2078,2417.8,2417.2,6.49101717]
[1750771682612,6.70174,2418.2,2417.6,2.06713]
[1750771682810,0.82674,2418.0,2417.9,0.82672]
[1750771683115,0.82674,2418.0,2417.9,0.8904715]
[1750771683712,41.00474,2418.0,2417.9,1.5e-06]
[1750771684015,0.82692,2417.4,2417.3,0.82694]
[1750771684217,2.06714,2417.6,2417.2,0.82697]
[1750771684218,0.82697,2417.3,2417.2,0.82697]
[1750771685216,0.82699,2417.2,2417.1,2.0452]
[1750771685718,0.82699,2417.2,2417.1,2.87222]
[1750771686215,0.82699,2417.2,2417.1,2.0452]
[1750771687113,0.82699,2417.2,2417.1,2.87222]
[1750771687316,0.82699,2417.2,2417.1,4.23202]
[1750771687718,0.82699,2417.2,2417.1,7.43982]
[1750771688218,0.82692,2417.5,2417.4,0.8269]
[1750771688612,0.82699,2417.2,2417.1,10.72301717]
[1750771688812,0.82699,2417.2,2417.1,7.4398]
[1750771689014,2.06742,2417.3,2416.9,3.28321717]
[1750771689320,0.82709,2416.9,2416.8,3.2078]
[1750771689520,0.82709,2416.9,2416.8,4.03492]
[1750771690021,1.0108,2417.4,2416.8,11.48809051]
[1750771690321,0.82699,2417.2,2417.1,0.827]
[1750771690507,0.82697,2417.3,2417.2,0.82696]
[1750771691920,0.82693,2417.4,2417.3,0.82692]
[1750771693317,0.82698,2417.3,2417.2,0.82696]
[1750771693814,0.82694,2417.4,2417.3,0.82691]
[1750771694016,0.82698,2417.3,2417.2,0.82697]
[1750771694412,0.82693,2417.4,2417.3,0.82691]
[1750771696522,0.82698,2417.3,2417.2,0.82696]
[1750771696723,4.03473,2417.4,2417.3,0.82694]
[1750771696923,3.2078,2417.4,2417.3,0.82694]
[1750771697223,4.0347,2417.4,2417.3,0.82694]
[1750771697525,3.2078,2418.0,2417.4,2.06722]
[1750771697721,0.82676,2417.9,2417.8,0.82673]
[1750771698026,3.2078,2418.0,2417.6,2.06708]
[1750771698217,4.0345,2418.0,2417.9,0.82673]
[1750771698417,0.82677,2417.9,2417.8,0.82674]
[1750771702333,3.2078,2418.0,2417.9,0.82673]
[1750771702626,3.2078,2418.3,2418.2,0.82663]
[1750771702820,4.03431,2418.6,2418.5,0.82649]
[1750771703213,3.2078,2418.6,2418.3,3.51383911]
[1750771703418,0.82663,2418.2,2418.1,2.45863911]
[1750771703619,0.82666,2418.1,2418.0,0.82668]
[1750771704123,7.795,2418.6,2418.5,0.82652]
[1750771704124,4.0343,2418.6,2418.5,0.82652]
[1750771704833,0.82657,2418.5,2418.4,0.82654]
[1750771705223,4.03431,2418.6,2418.5,0.82652]
[1750771705521,3.2078,2418.6,2418.2,1.3436]
[1750771705728,0.82658,2418.4,2418.3,0.82655]
[1750771708931,0.82664,2418.3,2418.2,0.82664]
[1750771709627,5.27407,2418.6,2418.1,1.101]
[1750771709628,3.2078,2418.6,2418.1,1.101]
[1750771709926,0.82652,2418.6,2418.5,0.8265]
[1750771710131,0.82649,2418.7,2418.6,0.82647]
[1750771710522,0.82654,2418.6,2418.5,0.82651]
[1750771711427,0.82648,2418.7,2418.6,0.82647]
[1750771711933,2.26348,2418.7,2418.6,0.82647]
[1750771713131,0.82648,2418.7,2418.6,0.82647]
[1750771713523,1.0942,2418.8,2418.3,2.0665]
[1750771713524,0.82653,2418.6,2418.5,0.82651]
[1750771714121,1.4285,2418.7,2418.3,2.0665]
[1750771714122,2.25499,2418.7,2418.6,0.8265]
[1750771714621,0.82649,2418.7,2418.6,0.8265]
[1750771714829,0.82646,2418.8,2418.7,0.82643]
[1750771715224,0.8265,2418.7,2418.6,0.82647]
[1750771715722,0.82654,2418.6,2418.5,0.82652]
[1750771719240,2.25499,2418.7,2418.6,0.8265]
[1750771719838,4.2935,2418.9,2418.8,0.82643]
[1750771720334,9.0698,2419.2,2418.8,0.82643]
[1750771720335,3.2078,2419.2,2419.1,0.82633]
[1750771721639,3.2078,2419.2,2419.1,9.98293]
[1750771721940,4.36096,2419.6,2419.2,0.8263]
[1750771721941,3.5348,2419.6,2419.2,0.8263]
[1750771722132,6.7426,2419.6,2419.1,7.72]
[1750771722439,6.7426,2419.6,2419.4,0.82623]
[1750771722643,7.56877,2419.6,2419.1,9.78582]
[1750771722935,6.7426,2419.6,2419.4,0.82621]
[1750771723142,0.82619,2419.5,2419.4,0.82621]
[1750771723535,2.14229,2419.5,2419.4,0.82621]
[1750771723838,1.3161,2419.5,2419.4,0.82621]
[1750771724139,5.3928,2419.6,2419.5,0.82619]
[1750771726042,2.185,2419.6,2419.5,0.82619]
[1750771726347,3.2078,2419.9,2419.5,0.82619]
[1750771726348,3.2078,2419.9,2419.8,0.82609]
[1750771726644,3.2078,2419.9,2419.6,0.82614]
[1750771726846,1.3152,2419.8,2419.6,0.82614]
[1750771727037,1.3152,2419.8,2419.3,2.06561]
[1750771727038,0.82615,2419.7,2419.3,2.06561]
[1750771727240,3.2078,2419.6,2419.5,0.82617]
[1750771727543,4.523,2419.6,2419.5,0.82617]
[1750771727739,1.3152,2419.6,2419.5,0.82617]
[1750771729547,3.2078,2419.9,2419.8,0.82609]
[1750771729746,4.03386,2419.9,2419.8,0.82609]
[1750771730341,5.47756,2419.9,2419.8,0.82609]
[1750771730641,4.6515,2419.9,2419.8,0.82609]
[1750771730840,3.2078,2419.9,2419.8,0.82609]
[1750771731849,4.03386,2419.9,2419.8,0.82609]
[1750771732055,4.5954,2419.9,2419.8,0.82609]
[1750771732256,3.2078,2419.9,2419.8,0.82609]
[1750771732459,3.2078,2420.2,2419.9,2.06512]
[1750771732763,3.2078,2420.2,2420.1,0.82599]
[1750771733359,2.4777,2420.6,2420.0,11.84814]
[1750771733560,2.4777,2420.6,2420.5,0.82585]
[1750771734361,2.4777,2420.6,2420.3,3.08618]
[1750771734362,1.1037,2420.7,2420.6,0.82582]
[1750771734760,2.4815,2420.7,2420.6,0.82582]
[1750771734963,2.4815,2420.7,2420.3,1.0214]
[1750771735157,4.03366,2420.5,2420.3,0.82589]
[1750771735463,1.3778,2420.4,2420.3,0.82589]
[1750771736064,0.82584,2420.6,2420.5,0.82585]
[1750771736269,1.3778,2420.6,2420.5,0.82585]
[1750771736670,1.1037,2420.7,2420.6,0.82582]
[1750771737261,3.2078,2420.8,2420.7,0.82578]
[1750771737764,2.06366,2421.7,2420.7,14.78046]
[1750771737964,0.82555,2421.4,2421.3,3.2078]
[1750771738461,2.24915,2421.4,2421.3,3.2078]
[1750771738653,1.4236,2421.4,2421.0,3.2078]
[1750771738859,0.82565,2421.1,2421.0,3.2078]
[1750771739064,0.82578,2420.7,2420.6,3.2078]
[1750771739268,0.82574,2420.9,2420.7,0.82577]
[1750771739458,1.4236,2420.8,2420.7,0.82577]
[1750771739964,2.24935,2420.8,2420.7,0.82577]
[1750771740159,1.4236,2420.8,2420.7,0.82577]
[1750771740367,1.4236,2420.8,2420.3,4.0337]
[1750771740565,0.82587,2420.5,2420.3,4.0337]
[1750771740765,1.3067,2420.4,2420.0,4.03379]
[1750771740962,0.82599,2420.1,2420.0,3.2078]
[1750771742067,0.8897415,2420.1,2420.0,3.2078]
[1750771742865,3.0200415,2420.1,2420.0,3.2078]
[1750771743068,2.95629,2420.1,2420.0,3.2078]
[1750771743463,2.1303,2420.1,2420.0,4.03382]
[1750771743771,1.0308,2420.1,2420.0,4.03382]
[1750771743970,1.0308,2420.1,2420.0,3.2078]
[1750771744167,1.0308,2420.1,2420.0,4.03382]
[1750771744367,1.0308,2420.1,2420.0,3.2078]
[1750771744368,1.85679,2420.1,2420.0,3.2078]
[1750771744665,1.0308,2420.1,2420.0,3.2078]
[1750771744861,1.85679,2420.1,2420.0,3.2078]
[1750771745262,0.82598,2420.2,2420.0,4.03382]
[1750771745466,0.82599,2420.1,2420.0,4.03382]
[1750771745666,0.82599,2420.1,2420.0,3.2078]
[1750771745865,1.0995,2420.5,2420.0,14.08121522]
[1750771746068,2.5578,2421.0,2420.4,3.2078]
[1750771746260,2.5578,2421.0,2420.5,7.645]
[1750771746467,0.82576,2420.8,2420.6,0.82581]
[1750771747079,0.82576,2420.8,2420.5,7.645]
[1750771747080,2.5578,2421.0,2420.5,7.645]
[1750771747264,1.1229,2421.0,2420.9,4.03352]
[1750771747470,0.82565,2421.1,2421.0,0.82568]
[1750771747673,1.044,2421.4,2420.9,3.2078]
[1750771747969,1.86955,2421.4,2421.2,3.2078]
[1750771748175,0.82555,2421.4,2421.2,4.03339]
[1750771748476,1.4401,2421.7,2421.2,3.2078]
[1750771748477,1.044,2421.6,2421.2,3.2078]
[1750771748680,0.82558,2421.3,2421.2,3.2078]
[1750771748979,0.82558,2421.3,2420.8,3.2078]
[1750771748980,0.82572,2420.9,2420.8,3.2078]
[1750771750474,2.14242,2420.9,2420.8,3.2078]
[1750771752276,0.82581,2420.7,2420.6,0.82582]
[1750771752469,0.82578,2420.8,2420.7,0.82579]
[1750771752777,0.82578,2420.8,2420.5,3.2078]
[1750771752778,0.82579,2420.7,2420.6,0.82579]
[1750771752980,1.3167,2420.9,2420.5,3.2078]
[1750771753272,0.82581,2420.7,2420.6,0.82582]
[1750771753464,0.82578,2420.8,2420.6,4.03362]
[1750771753669,1.3804515,2420.9,2420.7,0.82579]
[1750771753872,1.3804515,2420.9,2420.6,4.0336]
[1750771754081,0.82578,2420.8,2420.6,4.0336]
[1750771754277,0.82579,2420.7,2420.6,3.2078]
[1750771754472,2.20899,2420.7,2420.6,3.2078]
[1750771755379,2.06465,2420.5,2420.3,3.2078]
[1750771755680,2.20909,2420.4,2420.3,3.2078]
[1750771755881,0.82589,2420.4,2420.3,3.2078]
[1750771757780,0.82599,2420.1,2420.0,3.2078]
[1750771758183,3.3824,2420.3,2420.0,4.03382]
[1750771758381,0.0637515,2420.1,2420.0,4.03382]
[1750771759282,0.0637515,2420.1,2420.0,5.12182]
[1750771759576,0.82593,2420.3,2420.0,5.6135]
[1750771759775,2.06449,2420.7,2420.2,0.82596]
[1750771759982,5.27263,2420.3,2419.5,5.27326]
[1750771760175,5.27263,2420.3,2419.5,7.67896]
[1750771760176,0.82607,2419.9,2419.5,7.67896]
[1750771760471,3.14582,2420.2,2419.7,0.82611]
[1750771760675,3.44366,2420.1,2419.6,0.82614]
[1750771760875,0.82615,2419.7,2419.6,0.82616]
[1750771761074,0.82616,2419.6,2419.5,5.6135]
[1750771761283,0.82616,2419.6,2419.5,4.03398]
[1750771761483,0.82616,2419.6,2419.5,11.67798]
[1750771761683,0.82616,2419.6,2419.5,4.03398]
[1750771762885,0.82616,2419.6,2419.5,3.2078]
[1750771763084,0.82619,2419.5,2419.4,10.60623]
[1750771763279,0.82626,2419.3,2419.2,1.63405199]
[1750771763484,0.8263,2419.2,2419.1,4.03411]
[1750771763880,0.8263,2419.2,2419.1,4.03413]
[1750771764289,0.8263,2419.2,2419.1,3.2078]
[1750771764790,0.82629,2419.3,2419.1,4.03412]
[1750771765182,0.8263,2419.2,2419.1,4.03412]
[1750771765379,0.8263,2419.2,2419.1,3.2078]
[1750771765585,0.8264,2418.9,2418.8,4.3156]
[1750771765884,0.82638,2419.0,2418.9,0.82639]
[1750771766286,0.82639,2419.0,2418.8,5.14203]
[1750771766589,0.82639,2419.0,2418.9,0.8264]
[1750771767188,0.8264,2418.9,2418.8,5.14203]
[1750771767379,4.2518,2419.4,2418.8,6.38166]
[1750771767581,0.82626,2419.4,2419.2,0.82629]
[1750771768187,0.8263,2419.2,2419.1,3.2078]
[1750771768884,0.82625,2419.4,2419.3,0.82626]
[1750771769078,1.87577,2419.6,2419.5,0.8262]
[1750771769388,0.82609,2419.8,2419.6,0.82614]
[1750771769687,1.1306,2419.9,2419.4,5.27338]
[1750771769880,0.82607,2419.9,2419.4,7.72518]
[1750771770187,0.82611,2419.8,2419.4,7.72518]
[1750771770490,1.444,2420.1,2419.4,5.6596]
[1750771770788,0.82606,2419.9,2419.8,0.82607]
[1750771770989,1.444,2420.1,2420.0,0.82601]
[1750771770990,0.82601,2420.1,2420.0,0.82601]
[1750771771181,4.3384,2420.2,2419.9,0.82604]
[1750771771382,4.3384,2420.2,2419.7,3.2078]
[1750771771582,2.4857,2420.2,2419.9,0.82606]
[1750771771782,0.82603,2420.1,2420.0,0.82605]
[1750771771985,2.4857,2420.2,2419.9,0.82606]
[1750771772180,0.82603,2420.1,2420.0,0.82605]
[1750771772677,0.82605,2420.0,2419.9,0.82605]
[1750771772882,0.82604,2420.1,2420.0,0.82605]
[1750771773081,2.06479,2420.4,2420.0,0.82603]
[1750771773295,3.41989,2420.4,2420.0,0.82603]
[1750771773789,0.82601,2420.1,2420.0,0.82603]
[1750771774093,0.82601,2420.1,2420.0,0.82604]
[1750771774587,0.826,2420.2,2419.8,13.98818]
[1750771774890,2.0646,2420.6,2420.2,0.82595]
[1750771775086,0.82594,2420.3,2420.2,0.82595]
[1750771775286,0.82594,2420.3,2420.1,3.2078]
[1750771775287,2.06478,2420.4,2420.0,0.82602]
[1750771775489,0.82601,2420.1,2420.0,0.82602]
[1750771775695,0.826,2420.2,2420.1,0.82601]
[1750771776089,1.3284,2420.3,2419.8,8.6591]
[1750771776294,0.82603,2420.1,2419.9,4.03386]
[1750771776494,0.82603,2420.1,2419.9,0.82606]
[1750771776694,0.82603,2420.1,2420.0,0.82604]
[1750771777093,0.82597,2420.2,2420.1,0.82598]
[1750771777395,0.826,2420.1,2420.0,0.826]
[1750771778296,0.82598,2420.2,2420.1,0.82599]
[1750771778792,8.2078,2420.2,2419.8,3.2078]
[1750771778993,0.82605,2420.0,2419.9,0.82605]
[1750771779197,0.82608,2419.9,2419.7,0.82611]
[1750771779399,0.82608,2419.9,2419.5,3.69954199]
[1750771779400,0.82608,2419.9,2419.5,5.05204199]
[1750771779793,0.82608,2419.9,2419.5,3.81272199]
[1750771780094,0.8261,2419.8,2419.5,3.81272199]
[1750771780289,2.06507,2420.0,2419.5,2.98655199]
[1750771780495,0.82616,2419.6,2419.5,2.98655199]
[1750771780791,0.82616,2419.6,2419.5,1.3525]
[1750771780995,3.44061,2420.1,2419.5,1.3525]
[1750771781298,0.82616,2419.6,2419.5,2.98655199]
[1750771781797,0.82614,2419.7,2419.5,3.81274199]
[1750771782496,0.82616,2419.6,2419.5,2.98655199]
[1750771782889,0.82613,2419.7,2419.5,3.81272199]
[1750771783290,0.82611,2419.8,2419.6,0.82615]
[1750771783596,0.82611,2419.8,2419.6,3.84220199]
[1750771783994,0.8261,2419.8,2419.6,3.84218199]
[1750771784396,0.82612,2419.7,2419.6,3.02026108]
[1750771784598,0.82616,2419.6,2419.5,7.58]
[1750771784792,0.82616,2419.6,2419.5,1.63841729]
[1750771784986,0.82616,2419.6,2419.3,1.63841729]
[1750771784987,0.82623,2419.4,2419.3,1.63841729]
[1750771785497,0.82626,2419.3,2419.2,1.63841729]
[1750771785700,0.82629,2419.2,2419.1,5.86771729]
[1750771788401,3.4339,2419.5,2419.1,5.86771729]
[1750771788402,0.82629,2419.3,2419.1,6.69404729]
[1750771788602,0.82629,2419.3,2419.2,1.63841729]
[1750771789998,0.25085623,2419.3,2419.2,2.46471729]
[1750771790396,0.25085623,2419.3,2419.2,2.2059]
[1750771790595,0.25085623,2419.3,2419.2,4.66453911]
[1750771792001,1.07711623,2419.3,2419.2,3.28493911]
[1750771792204,1.07713623,2419.3,2419.1,7.51423911]
[1750771792403,0.23235917,2419.2,2419.1,15.09526911]
[1750771793400,1.05864917,2419.2,2419.1,7.51791611]
[1750771793592,1.05864917,2419.2,2419.1,6.69158611]
[1750771793793,14.31357439,2419.2,2414.9,26.434182]
[1750771794007,3.2078,2417.7,2416.7,3.526]
[1750771794210,3.2078,2417.4,2416.7,3.87091046]
[1750771794407,3.2078,2417.4,2416.7,5.98887374]
[1750771794700,3.2078,2417.0,2416.7,4.59047374]
[1750771795095,3.2078,2417.0,2416.7,5.98887374]
[1750771795299,4.03486,2417.0,2416.7,5.98887374]
[1750771795500,0.23235917,2416.9,2416.7,5.98887374]
[1750771795806,1.05946917,2416.9,2416.7,5.98887374]
[1750771796105,0.82712,2416.8,2416.7,5.98887374]
[1750771796309,0.82712,2416.8,2416.7,4.59047374]
[1750771796601,1.05947917,2416.8,2416.7,4.59047374]
[1750771797200,1.05947917,2416.8,2416.6,3.2078]
[1750771797201,19.70976633,2416.8,2414.7,3.2078]
[1750771797401,3.2078,2415.0,2414.7,3.84567374]
[1750771797905,3.2078,2415.3,2414.8,1.3828]
[1750771798402,3.2078,2414.9,2414.3,3.2078]
[1750771798613,3.2078,2414.6,2414.4,1.4241]
[1750771798908,3.2078,2414.6,2414.1,1.0314]
[1750771799118,0.82792,2414.5,2414.2,2.5321]
[1750771799412,0.82805,2414.1,2413.7,7.583]
[1750771799706,3.2078,2414.3,2413.7,7.583]
[1750771799907,4.03579,2414.3,2413.7,8.41116]
[1750771800098,3.2078,2414.3,2413.7,7.583]
[1750771800296,3.2078,2414.3,2413.8,0.82813]
[1750771800496,3.2078,2414.6,2413.6,6.89640716]
[1750771800699,3.2078,2415.4,2414.3,6.89640716]
[1750771800901,3.2078,2414.9,2414.4,1.0274]
[1750771801300,3.2078,2414.6,2413.8,7.587]
[1750771801509,3.2078,2414.3,2413.8,8.41512]
[1750771801809,1.3985,2414.8,2413.6,3.2078]
[1750771801810,3.2078,2414.1,2413.6,3.2078]
[1750771802006,3.2078,2414.7,2413.9,6.89640716]
[1750771802207,3.2078,2415.0,2414.5,0.82788]
[1750771802400,4.03554,2415.0,2414.4,0.82792]
[1750771802601,3.2078,2415.0,2414.3,7.587]
[1750771802802,1.3985,2415.5,2415.0,0.82772]
[1750771803005,3.2078,2415.7,2415.3,0.82761]
[1750771803311,3.2078,2415.4,2414.9,0.82775]
[1750771803608,3.2078,2415.4,2415.2,0.82764]
[1750771803811,3.2078,2415.4,2414.8,10.7978]
[1750771804002,3.2078,2415.7,2415.2,0.82765]
[1750771804314,4.03531,2415.7,2415.1,0.82768]
[1750771804611,4.03519,2416.0,2415.5,0.82754]
[1750771804806,3.2078,2416.0,2415.6,0.82752]
[1750771805110,3.2078,2416.0,2415.7,0.82748]
[1750771805404,4.0352,2416.0,2415.3,7.59]
[1750771805597,3.2078,2415.7,2415.4,0.82759]
[1750771805800,3.2078,2415.7,2415.3,8.614]
[1750771805801,3.2078,2415.7,2415.3,1.024]
[1750771805999,3.2078,2415.4,2415.3,1.024]
[1750771806201,0.82754,2415.6,2415.3,1.024]
[1750771806608,4.03532,2415.7,2415.3,1.024]
[1750771806801,0.82755,2415.6,2415.3,1.024]
[1750771807201,4.0353,2415.7,2415.4,0.82759]
[1750771807509,0.82753,2415.6,2415.3,1.024]
[1750771807707,0.82756,2415.5,2415.3,1.024]
[1750771807906,0.82754,2415.6,2415.3,1.024]
[1750771808103,3.2078,2415.4,2415.0,0.0637515]
[1750771808299,4.0355,2415.1,2415.0,0.0637515]
[1750771810501,1.337,2415.3,2415.0,0.0637515]
[1750771810502,3.2078,2415.5,2415.0,5.0637515]
[1750771810702,3.2078,2415.5,2415.4,0.82759]
[1750771810904,4.03539,2415.5,2415.1,8.9807]
[1750771811105,3.2078,2415.5,2415.4,0.82759]
[1750771811305,3.2078,2415.5,2415.1,1.4137]
[1750771811506,3.2078,2415.5,2415.0,8.4584615]
[1750771811815,0.8277,2415.1,2415.0,0.0637515]
[1750771812413,2.1596,2415.1,2415.0,0.0637515]
[1750771813514,14.05600716,2415.1,2415.0,1.5e-06]
[1750771813716,4.13938,2414.6,2413.3,2.0625]
[1750771814018,3.2078,2413.7,2413.6,0.82821]
[1750771814318,0.82812,2413.9,2413.7,0.82815]
[1750771814612,3.2078,2414.0,2413.9,0.82811]
[1750771815005,3.2078,2415.0,2414.3,2.06991]
[1750771815211,0.82784,2414.7,2414.5,0.82788]
[1750771815406,1.437,2414.9,2414.3,3.2078]
[1750771815622,2.2648,2414.9,2414.7,0.82782]
[1750771815919,4.09643,2415.3,2414.5,0.8279]
[1750771815920,0.82773,2415.1,2414.5,0.8279]
[1750771816113,1.437,2415.3,2414.6,2.06968]
[1750771816315,0.82761,2415.4,2415.2,0.82764]
[1750771816520,3.2078,2415.7,2415.0,0.0637515]
[1750771816820,1.3687,2415.6,2415.0,0.0637515]
[1750771817116,0.82766,2415.3,2415.1,0.82769]
[1750771817318,0.82764,2415.3,2415.1,0.82769]
[1750771817616,3.2078,2415.4,2415.0,0.0637515]
[1750771817821,0.8277,2415.1,2415.0,0.0637515]
[1750771818722,4.0355,2415.1,2415.0,0.0637515]
[1750771821820,3.2078,2415.1,2415.0,0.8914515]
[1750771822019,4.03546,2415.1,2415.0,0.0637515]
[1750771822221,4.03546,2415.1,2415.0,0.8914515]
[1750771822521,4.03547,2415.1,2415.0,0.8914515]
[1750771822726,5.24858664,2415.1,2415.0,0.8914515]
[1750771823026,5.24858664,2415.1,2415.0,0.0637515]
[1750771823524,4.42091664,2415.1,2415.0,0.8914515]
[1750771824220,1.21311664,2415.1,2415.0,5.8914515]
[1750771824515,1.21311664,2415.1,2415.0,9.0992515]
[1750771824710,2.04078664,2415.1,2415.0,0.8914515]
[1750771824914,1.21311664,2415.1,2415.0,0.8914515]
[1750771825324,2.04078664,2415.1,2415.0,0.0637515]
[1750771825822,1.21311664,2415.1,2415.0,0.8914515]
[1750771826224,1.21311664,2415.1,2415.0,5.8914515]
[1750771826416,5.28550996,2415.1,2415.0,0.0637515]
[1750771826610,4.45783996,2415.1,2415.0,0.8914515]
[1750771826811,1.21311664,2415.1,2415.0,5.8914515]
[1750771827020,3.68145005,2415.1,2415.0,5.8914515]
[1750771827224,3.68145005,2415.1,2415.0,7.2344515]
[1750771827522,1.21311664,2415.1,2415.0,14.8044515]
[1750771828628,2.04079664,2415.1,2415.0,1.4067515]
[1750771828923,2.04079664,2415.1,2415.0,0.0637515]
[1750771829225,0.82777,2414.9,2414.7,7.57]
[1750771829423,0.82777,2414.9,2414.8,0.82776]
[1750771829624,2.11697952,2414.9,2414.8,0.82776]
[1750771829926,1.28920952,2414.9,2414.8,0.82776]
[1750771831015,1.28920952,2414.9,2414.8,4.03556]
[1750771831216,1.28920952,2414.9,2414.8,5.38076]
[1750771831923,3.29312821,2415.2,2415.1,0.82768]
[1750771832127,3.29312821,2415.2,2414.9,2.06935]
[1750771832128,3.2078,2414.5,2412.7,1.3987]
[1750771832325,3.29056598,2414.0,2413.1,0.82837]
[1750771832519,3.2078,2413.5,2413.4,0.82827]
[1750771833020,3.2078,2413.5,2413.2,2.22702]
[1750771833238,3.2078,2413.5,2413.2,1.3987]
[1750771833414,4.03603,2413.5,2413.1,7.57]
[1750771833621,4.03603,2413.5,2413.1,9.79706]
[1750771833822,3.2078,2413.5,2413.1,1.3987]
[1750771834025,3.2078,2413.5,2413.2,7.571]
[1750771834219,12.25710314,2414.1,2413.0,30.6078]
[1750771834220,3.2078,2413.8,2413.6,0.82817]
[1750771834431,8.2078,2414.1,2413.5,7.571]
[1750771834925,3.2078,2414.4,2413.6,1.3227]
[1750771835222,3.2078,2414.4,2413.6,3.1986]
[1750771835223,0.82803,2414.1,2413.6,3.1986]
[1750771835426,0.82808,2414.0,2413.7,8.39916]
[1750771835622,3.2078,2414.1,2413.9,0.82807]
[1750771835824,3.2078,2414.1,2413.7,7.571]
[1750771835825,0.82797,2414.3,2414.0,0.82806]
[1750771836024,3.2078,2414.4,2413.8,1.3227]
[1750771836230,3.2078,2414.4,2413.8,7.572]
[1750771836231,0.82811,2413.9,2413.8,7.572]
[1750771836731,0.82809,2413.9,2413.8,7.572]
[1750771837026,5.0,2413.9,2413.2,0.8920715]
[1750771837224,5.0,2413.9,2413.2,0.0637515]
[1750771837225,0.82826,2413.5,2413.2,0.0637515]
[1750771837415,4.5849,2413.8,2413.2,0.0637515]
[1750771837416,3.2078,2413.3,2413.2,0.0637515]
[1750771837618,4.0361,2413.3,2413.2,0.0637515]
[1750771838426,3.2078,2413.3,2413.2,0.0637515]
[1750771838626,5.42953,2413.6,2413.2,0.0637515]
[1750771838833,8.2078,2413.6,2413.2,0.0637515]
[1750771839129,3.2078,2413.6,2413.3,0.82828]
[1750771839428,3.2078,2413.6,2413.3,0.8283]
[1750771839617,3.2078,2413.6,2413.2,0.0637515]
[1750771839618,3.2078,2413.6,2413.2,0.8920815]
[1750771839823,0.82823,2413.5,2413.2,0.8920815]
[1750771840029,3.2078,2413.3,2413.2,0.8920815]
[1750771840227,3.2078,2413.3,2413.2,0.0637515]
[1750771840430,4.0361,2413.3,2413.2,0.0637515]
[1750771840626,3.2078,2413.3,2413.2,0.0637515]
[1750771841030,0.82829,2413.4,2413.3,0.8283]
[1750771841325,1.3935,2413.5,2413.3,0.82828]
[1750771841326,6.3935,2413.5,2413.3,0.82828]
[1750771841519,0.82827,2413.4,2413.3,0.8283]
[1750771841723,2.22107,2413.4,2413.3,0.8283]
[1750771842628,0.8283,2413.3,2413.2,0.8920815]
[1750771842825,5.4289,2413.3,2413.2,0.0637515]
[1750771843331,4.6006,2413.3,2413.2,0.8920815]
[1750771843632,3.2078,2413.6,2413.5,0.82823]
[1750771843831,3.2078,2413.6,2413.2,0.0637515]
[1750771844027,3.2078,2413.3,2413.2,0.8920815]
[1750771846225,4.03596,2413.7,2413.6,0.82817]
[1750771846430,0.82827,2413.4,2413.2,0.0637515]
[1750771846629,0.82827,2413.4,2413.3,0.82827]
[1750771846821,0.82825,2413.5,2413.4,0.82825]
[1750771847034,6.3283,2413.6,2413.5,0.82823]
[1750771847333,8.32875831,2413.6,2413.5,0.82823]
[1750771847534,2.1565,2413.6,2413.5,0.82823]
[1750771847723,3.2078,2414.0,2413.9,0.82809]
[1750771847931,8.42594171,2414.0,2413.6,5.27822]
[1750771848236,0.8281,2413.9,2413.8,0.82811]
[1750771848433,6.4256,2414.0,2413.9,0.82809]
[1750771848631,7.59301497,2414.0,2413.9,0.82809]
[1750771848831,7.59301497,2414.0,2413.8,0.82811]
[1750771849035,0.8281,2413.9,2413.8,0.82811]
[1750771849237,7.25367,2414.0,2413.9,0.82809]
[1750771849436,7.25368,2414.0,2413.9,0.82809]
[1750771849635,0.82811,2413.9,2413.8,0.8281]
[1750771849838,0.82816,2413.8,2413.7,0.82815]
[1750771850041,0.82812,2413.9,2413.8,0.82812]